bitfinex-derivatives/quotes_SOLF0:USTF0_20250907
["timestamp","ask_amount","ask_price","bid_price","bid_amount"]
[1757228358477,1.8,202.49,202.45,4.38783716]
[1757228358679,1.8,202.49,202.45,7.86]
[1757228358870,1.8,202.49,202.44,1.54752326]
[1757228359177,1.8,202.49,202.45,4.38783716]
[1757228359377,1.8,202.49,202.45,7.69]
[1757228360070,1.8,202.49,202.44,1.54752326]
[1757228360270,1.8,202.49,202.45,4.3884913]
[1757228360572,1.8,202.49,202.44,1.54752326]
[1757228360770,1.8,202.49,202.45,4.38843965]
[1757228360970,1.8,202.49,202.44,1.54752326]
[1757228361279,1.8,202.49,202.46,7.69]
[1757228361878,1.8,202.49,202.45,1.54752326]
[1757228362078,1.8,202.49,202.46,7.69]
[1757228362782,1.79,202.46,202.4,7.69]
[1757228362981,1.79,202.44,202.41,4.38987156]
[1757228363174,5.52664482,202.46,202.39,7.69]
[1757228363175,1.79,202.42,202.39,7.69]
[1757228363375,1.79,202.42,202.4,9.00034641]
[1757228363578,1.79,202.42,202.41,4.39069752]
[1757228365083,120.26,202.42,202.33,7.69]
[1757228365279,1.79,202.37,202.34,9.00499597]
[1757228365479,1.79,202.37,202.35,4.39304683]
[1757228365678,1.79,202.37,202.33,7.69]
[1757228365679,1.79,202.37,202.36,4.39304683]
[1757228367280,1.79,202.37,202.31,1.54752326]
[1757228367480,1.79,202.37,202.33,7.69]
[1757228367686,1.79,202.37,202.34,16.69201123]
[1757228367986,1.79,202.37,202.35,4.39159506]
[1757228368179,1.79,202.37,202.34,7.69]
[1757228368379,1.79,202.37,202.35,4.39076993]
[1757228368680,1.79,202.37,202.34,7.69]
[1757228368881,1.79,202.37,202.35,4.38860437]
[1757228369081,1.79,202.37,202.34,7.69]
[1757228369282,1.79,202.37,202.35,4.38881133]
[1757228369478,1.79,202.37,202.34,7.69]
[1757228369788,1.79,202.37,202.35,4.3878218]
[1757228370086,1.79,202.37,202.34,7.69]
[1757228370386,1.79,202.37,202.35,12.07798877]
[1757228370588,1.79,202.37,202.35,7.69]
[1757228371385,1.79,202.41,202.37,7.69]
[1757228371585,3.33752326,202.42,202.36,1.54752326]
[1757228371783,3.33752326,202.42,202.37,4.38604864]
[1757228371982,3.33752326,202.42,202.36,1.54752326]
[1757228372182,3.33752326,202.42,202.38,7.69]
[1757228372388,3.33752326,202.42,202.37,7.69]
[1757228372586,3.33752326,202.42,202.36,1.54752326]
[1757228372889,3.33752326,202.42,202.38,7.69]
[1757228373087,3.33752326,202.42,202.36,1.54752326]
[1757228373288,7.07416808,202.44,202.38,1.54752326]
[1757228373792,7.07416808,202.44,202.39,7.69]
[1757228374094,7.07416808,202.44,202.38,1.54752326]
[1757228374385,8.86416808,202.44,202.38,9.23752326]
[1757228377095,1.79,202.44,202.39,4.384494]
[1757228377297,1.54752326,202.46,202.4,5.93195382]
[1757228377489,1.54752326,202.46,202.39,1.54752326]
[1757228377691,1.54752326,202.46,202.4,12.07440744]
[1757228377890,1.54752326,202.46,202.4,7.69]
[1757228378390,7.31664482,202.47,202.4,7.69]
[1757228378595,7.31664482,202.47,202.41,1.54752326]
[1757228378995,7.31664482,202.47,202.42,7.69]
[1757228379194,7.31664482,202.47,202.41,9.23752326]
[1757228379895,7.31664482,202.47,202.41,7.69]
[1757228379896,1.79,202.45,202.41,7.69]
[1757228380096,1.54752326,202.46,202.41,7.69]
[1757228380396,1.54752326,202.46,202.39,1.54752326]
[1757228380397,1.79,202.45,202.39,1.54752326]
[1757228380602,1.79,202.45,202.41,7.69]
[1757228380803,1.79,202.45,202.39,1.54752326]
[1757228381103,3.33752326,202.46,202.4,12.07445335]
[1757228381300,3.33752326,202.46,202.4,7.69]
[1757228381596,1.54752326,202.46,202.4,7.69]
[1757228381793,1.79,202.45,202.4,7.69]
[1757228382401,1.54752326,202.46,202.39,1.54752326]
[1757228382602,1.79,202.45,202.4,12.07462154]
[1757228382802,3.33752326,202.46,202.4,7.69]
[1757228385304,8.86416808,202.46,202.4,7.69]
[1757228387504,5.52664482,202.45,202.4,7.69]
[1757228387702,1.79,202.43,202.4,7.69]
[1757228387905,1.79,202.43,202.37,7.69]
[1757228388103,1.79,202.43,202.39,7.69]
[1757228388306,1.79,202.43,202.37,7.69]
[1757228388607,1.79,202.43,202.38,8.99083199]
[1757228388808,1.79,202.43,202.39,4.38555159]
[1757228389005,1.79,202.43,202.38,1.54752326]
[1757228389204,1.79,202.43,202.4,7.41]
[1757228389407,1.79,202.43,202.39,7.41]
[1757228389603,1.79,202.43,202.36,7.41]
[1757228389806,1.79,202.43,202.38,7.41]
[1757228390003,1.79,202.43,202.39,4.38564366]
[1757228390206,1.79,202.43,202.36,7.41]
[1757228390404,1.79,202.43,202.38,7.41]
[1757228390704,1.79,202.43,202.39,4.38575234]
[1757228390899,1.79,202.43,202.38,7.41]
[1757228391104,1.79,202.43,202.4,7.41]
[1757228391304,1.79,202.43,202.36,7.41]
[1757228391607,1.79,202.43,202.38,7.41]
[1757228391807,1.79,202.43,202.39,4.3858779]
[1757228392103,1.79,202.43,202.38,7.41]
[1757228392302,1.79,202.43,202.4,7.41]
[1757228392609,1.79,202.43,202.36,7.41]
[1757228392809,1.79,202.43,202.38,7.41]
[1757228393003,1.79,202.43,202.39,4.38602062]
[1757228393308,1.79,202.43,202.38,7.41]
[1757228393608,1.79,202.43,202.39,4.3861198]
[1757228393809,1.79,202.43,202.38,7.41]
[1757228394008,1.79,202.43,202.4,7.41]
[1757228394208,1.79,202.43,202.36,7.41]
[1757228394403,1.79,202.43,202.38,7.41]
[1757228394607,1.79,202.43,202.39,4.3862322]
[1757228394809,1.79,202.43,202.38,7.41]
[1757228395010,1.79,202.43,202.39,4.3862322]
[1757228395211,1.79,202.43,202.4,4.38610789]
[1757228395510,1.79,202.43,202.41,7.41]
[1757228398813,1.79,202.43,202.35,2.41764141]
[1757228399013,1.79,202.43,202.37,7.41]
[1757228399213,1.79,202.43,202.38,8.99104838]
[1757228399413,1.79,202.43,202.39,8.99104838]
[1757228399614,1.79,202.43,202.41,7.41]
[1757228400209,1.79,202.44,202.33,7.41]
[1757228400412,1.79,202.41,202.34,16.40272593]
[1757228400619,7.31664482,202.41,202.35,8.99272593]
[1757228400818,5.52664482,202.41,202.36,4.38436003]
[1757228401019,5.52664482,202.41,202.36,7.41]
[1757228401423,1.79,202.4,202.3,2.41764141]
[1757228401617,1.79,202.4,202.32,7.41]
[1757228401812,5.52664482,202.42,202.34,7.41]
[1757228402119,5.52664482,202.42,202.36,7.41]
[1757228402417,5.52664482,202.43,202.38,7.41]
[1757228402922,7.31664482,202.43,202.38,7.41]
[1757228403315,5.52664482,202.42,202.38,7.41]
[1757228404321,5.52664482,202.42,202.39,4.38734034]
[1757228404523,5.52664482,202.42,202.34,7.41]
[1757228404722,5.52664482,202.42,202.36,7.41]
[1757228405021,5.52664482,202.42,202.38,7.41]
[1757228405324,7.31664482,202.44,202.4,7.41]
[1757228405520,7.31664482,202.44,202.41,4.38734034]
[1757228405723,7.31664482,202.44,202.36,2.41764141]
[1757228405923,5.52664482,202.44,202.38,7.41]
[1757228406124,5.52664482,202.44,202.39,9.00054628]
[1757228406424,5.52664482,202.44,202.41,7.41]
[1757228406625,5.52664482,202.44,202.37,7.41]
[1757228406825,5.52664482,202.44,202.39,7.41]
[1757228407024,5.52664482,202.44,202.41,7.41]
[1757228407222,5.52664482,202.44,202.42,4.38941447]
[1757228407417,5.52664482,202.44,202.37,7.41]
[1757228407624,5.52664482,202.44,202.39,7.41]
[1757228407822,5.52664482,202.44,202.41,7.41]
[1757228408022,5.52664482,202.44,202.43,7.41]
[1757228409224,5.52664482,202.44,202.38,7.41]
[1757228409425,1.79,202.43,202.4,7.41]
[1757228409621,1.79,202.43,202.41,16.41568923]
[1757228409926,1.79,202.43,202.42,4.39067562]
[1757228410527,7.31664482,202.44,202.42,11.80067562]
[1757228410826,7.31664482,202.44,202.42,7.41]
[1757228412227,5.52664482,202.43,202.42,7.41]
[1757228412428,5.52664482,202.43,202.42,11.8019247]
[1757228412931,5.52664482,202.44,202.42,9.00799632]
[1757228413223,5.52664482,202.44,202.43,11.8019247]
[1757228416230,5.52664482,202.44,202.43,16.42082821]
[1757228417831,5.52664482,202.44,202.43,11.8019247]
[1757228418027,5.52664482,202.44,202.43,16.41716454]
[1757228419832,5.52664482,202.46,202.43,9.00716454]
[1757228420031,5.52664482,202.46,202.45,8.17]
[1757228420230,5.52664482,202.47,202.46,8.17]
[1757228420434,5.52664482,202.47,202.46,12.5619247]
[1757228427033,5.52664482,202.48,202.46,4.3919247]
[1757228427238,5.52664482,202.48,202.47,12.5619247]
[1757228428339,5.52664482,202.49,202.47,8.17]
[1757228429638,7.30664482,202.49,202.47,8.17]
[1757228431041,5.52664482,202.48,202.47,8.17]
[1757228431242,5.52664482,202.49,202.42,2.41764141]
[1757228431543,7.29664482,202.49,202.43,17.22412364]
[1757228431738,1.77,202.48,202.45,8.17]
[1757228431936,1.77,202.47,202.46,4.44640606]
[1757228433142,1.77,202.47,202.46,12.61640606]
[1757228436449,7.29664482,202.49,202.46,12.61640606]
[1757228436743,7.29664482,202.49,202.46,8.17]
[1757228438342,7.29664482,202.49,202.42,8.17]
[1757228438646,7.29664482,202.49,202.43,9.05054044]
[1757228438847,7.29664482,202.49,202.45,8.17]
[1757228439047,5.52664482,202.49,202.46,4.44464638]
[1757228439246,5.52664482,202.49,202.42,8.17]
[1757228439446,5.52664482,202.49,202.44,8.17]
[1757228439650,5.52664482,202.49,202.46,8.17]
[1757228439849,5.52664482,202.49,202.42,8.17]
[1757228440045,5.52664482,202.49,202.44,8.17]
[1757228440242,5.52664482,202.49,202.45,4.44457396]
[1757228440446,7.29664482,202.49,202.47,8.17]
[1757228442849,5.52664482,202.49,202.42,8.17]
[1757228443149,5.52664482,202.49,202.44,8.17]
[1757228443348,5.52664482,202.49,202.45,4.44436061]
[1757228443549,5.52664482,202.49,202.47,8.17]
[1757228449351,7.31664482,202.48,202.42,7.67]
[1757228449549,7.31664482,202.46,202.43,16.72888763]
[1757228449852,7.31664482,202.46,202.44,12.11931465]
[1757228450054,5.52664482,202.46,202.45,7.67]
[1757228450351,5.52664482,202.46,202.45,12.12028137]
[1757228453456,5.52664482,202.47,202.46,7.67]
[1757228453651,5.52664482,202.48,202.47,7.67]
[1757228453852,5.52664482,202.48,202.47,12.12028137]
[1757228458859,5.52664482,202.48,202.47,7.67]
[1757228459158,5.52664482,202.48,202.47,12.12471703]
[1757228461165,5.52664482,202.48,202.47,16.74006901]
[1757228461361,10.08943541,202.5,202.47,16.74006901]
[1757228461557,10.08943541,202.5,202.48,4.45471703]
[1757228461862,10.08943541,202.5,202.47,7.67]
[1757228462058,10.08943541,202.5,202.48,4.45607078]
[1757228462265,10.08943541,202.5,202.47,7.67]
[1757228462466,10.08943541,202.5,202.48,4.45669659]
[1757228462668,10.08943541,202.5,202.47,7.67]
[1757228462867,10.08943541,202.5,202.48,4.45669659]
[1757228463065,10.08943541,202.5,202.47,7.67]
[1757228463363,10.08943541,202.5,202.48,4.457429]
[1757228463567,10.08943541,202.5,202.47,7.67]
[1757228463868,10.08943541,202.5,202.48,4.45744832]
[1757228464064,10.08943541,202.5,202.47,7.67]
[1757228464269,8.29943541,202.49,202.48,4.45834519]
[1757228464466,10.08943541,202.49,202.48,4.45834519]
[1757228464670,10.07936787,202.49,202.48,4.45854242]
[1757228471775,8.28936787,202.49,202.48,4.45854242]
[1757228471974,8.28936787,202.49,202.48,12.12854242]
[1757228475878,10.07936787,202.49,202.48,4.45854242]
[1757228479679,10.07936787,202.49,202.48,4.44154711]
[1757228484484,10.07936787,202.49,202.43,1.54689269]
[1757228484778,5.52986234,202.46,202.45,8.0]
[1757228485086,5.52986234,202.46,202.45,17.07546256]
[1757228491180,5.52986234,202.46,202.45,17.07543276]
[1757228493590,8.28936787,202.52,202.46,8.0]
[1757228493790,8.28936787,202.52,202.51,8.0]
[1757228493990,8.28936787,202.52,202.51,12.44167178]
[1757228494188,121.19545777,202.53,202.52,8.0]
[1757228495087,112.9060899,202.53,202.52,17.28055028]
[1757228495282,8.28936787,202.54,202.53,8.0]
[1757228495489,15.60936787,202.56,202.54,8.0]
[1757228496085,8.28936787,202.56,202.52,1.54689269]
[1757228496385,15.60936787,202.57,202.53,9.27559553]
[1757228496688,15.60936787,202.57,202.55,8.0]
[1757228497478,8.28936787,202.58,202.54,1.54689269]
[1757228497681,135.14936787,202.59,202.56,8.0]
[1757228497883,135.14936787,202.59,202.55,8.0]
[1757228497884,126.86,202.59,202.55,8.0]
[1757228498085,126.86,202.59,202.57,8.0]
[1757228502592,7.32,202.58,202.55,8.0]
[1757228502892,7.32,202.58,202.54,1.54689269]
[1757228503093,7.32,202.58,202.55,8.0]
[1757228504492,7.32,202.58,202.54,1.54689269]
[1757228505084,7.32,202.58,202.55,8.0]
[1757228505695,7.32,202.58,202.54,1.54689269]
[1757228505889,7.32,202.58,202.48,4.4439]
[1757228506189,7.32,202.58,202.55,8.0]
[1757228506391,119.54,202.59,202.55,8.0]
[1757228506694,8.86689269,202.58,202.52,9.54689269]
[1757228506893,7.32,202.57,202.52,9.54689269]
[1757228507087,8.86689269,202.58,202.52,9.54689269]
[1757228507486,7.32,202.58,202.52,9.54689269]
[1757228508592,121.08689269,202.59,202.53,9.24014791]
[1757228508790,128.40689269,202.59,202.53,8.0]
[1757228509493,126.86,202.59,202.53,8.0]
[1757228524318,132.36469882,202.59,202.53,8.0]
[1757228526118,132.36469882,202.59,202.5,7.91]
[1757228526320,7.31,202.55,202.46,7.91]
[1757228526517,2.41392515,202.53,202.47,9.22505458]
[1757228526718,7.31,202.52,202.43,7.91]
[1757228526916,124.96469882,202.54,202.44,9.22604752]
[1757228527220,7.31,202.51,202.45,9.22604752]
[1757228527421,2.41392515,202.52,202.46,9.22604752]
[1757228527620,7.31,202.51,202.43,7.91]
[1757228527820,7.31,202.51,202.44,9.17685608]
[1757228528117,2.41392515,202.52,202.45,9.17685608]
[1757228528324,2.41392515,202.52,202.46,9.17685608]
[1757228528522,7.31,202.51,202.43,7.91]
[1757228528717,7.31,202.51,202.44,9.17752084]
[1757228528922,7.31,202.51,202.45,9.17752084]
[1757228529223,7.31,202.51,202.46,4.43880922]
[1757228529422,7.31,202.51,202.43,7.91]
[1757228529724,7.31,202.51,202.44,9.17826418]
[1757228529924,7.31,202.51,202.45,9.17826418]
[1757228530133,2.41392515,202.52,202.46,9.17826418]
[1757228530320,7.31,202.51,202.43,7.91]
[1757228530514,7.31,202.51,202.44,9.17902054]
[1757228530722,2.41392515,202.52,202.45,9.17902054]
[1757228530925,7.31,202.51,202.46,9.17902054]
[1757228531225,7.31,202.51,202.43,7.91]
[1757228531423,2.41392515,202.52,202.44,9.17979315]
[1757228531624,7.31,202.51,202.45,9.17979315]
[1757228531825,7.31,202.51,202.46,9.17979315]
[1757228532024,7.31,202.51,202.43,7.91]
[1757228532226,7.31,202.51,202.44,9.17984087]
[1757228532421,7.31,202.51,202.45,9.17984087]
[1757228532629,7.31,202.51,202.46,9.17984087]
[1757228532830,7.31,202.51,202.43,7.91]
[1757228533132,7.31,202.51,202.44,9.18046335]
[1757228533430,7.31,202.51,202.43,7.91]
[1757228533431,2.41392515,202.52,202.45,9.18046335]
[1757228533629,7.31,202.51,202.46,9.18046335]
[1757228533929,7.31,202.51,202.43,7.91]
[1757228534125,2.41392515,202.52,202.44,17.09109664]
[1757228534332,2.41392515,202.52,202.45,9.18109664]
[1757228534528,2.41392515,202.52,202.46,9.18109664]
[1757228534833,7.31,202.51,202.41,7.91]
[1757228535132,7.31,202.51,202.43,7.91]
[1757228535334,7.31,202.51,202.45,7.91]
[1757228535628,2.41392515,202.52,202.46,9.18174433]
[1757228535833,7.31,202.51,202.41,7.91]
[1757228536035,7.31,202.51,202.4,334.33392515]
[1757228536036,7.31,202.51,202.45,7.91]
[1757228536232,7.31,202.51,202.46,17.09235839]
[1757228536435,7.31,202.51,202.46,7.91]
[1757228536630,7.31,202.51,202.41,7.91]
[1757228536829,7.31,202.51,202.43,7.91]
[1757228537030,7.31,202.5,202.44,9.18325551]
[1757228537227,7.31,202.5,202.45,4.44158578]
[1757228537431,7.31,202.5,202.43,7.91]
[1757228537730,5.50469882,202.51,202.44,9.18390947]
[1757228538035,7.31,202.5,202.45,4.44190499]
[1757228538231,7.31,202.5,202.43,7.91]
[1757228538436,7.31,202.5,202.44,9.18019465]
[1757228538736,5.50469882,202.51,202.45,4.44201052]
[1757228538936,7.31,202.5,202.41,7.91]
[1757228539139,7.31,202.5,202.43,7.91]
[1757228539337,7.31,202.5,202.44,9.18019465]
[1757228539637,7.33,202.5,202.45,4.44201052]
[1757228539936,7.33,202.5,202.43,8.07]
[1757228540137,7.33,202.5,202.44,9.17889107]
[1757228540434,7.33,202.5,202.45,4.44137976]
[1757228540638,7.33,202.5,202.43,8.07]
[1757228540835,7.33,202.5,202.44,9.17734752]
[1757228541036,7.33,202.5,202.45,4.44063288]
[1757228541234,7.33,202.5,202.43,8.07]
[1757228541435,7.33,202.48,202.44,9.17579671]
[1757228541633,2.41392515,202.49,202.43,8.07]
[1757228541830,2.41392515,202.49,202.44,4.44002892]
[1757228542036,7.33,202.48,202.43,8.07]
[1757228543032,7.33,202.48,202.37,8.07]
[1757228543233,7.33,202.48,202.39,8.07]
[1757228543437,7.33,202.48,202.41,8.07]
[1757228543630,7.33,202.48,202.43,8.07]
[1757228543835,9.74392515,202.49,202.37,8.07]
[1757228544031,9.74392515,202.49,202.39,8.07]
[1757228544237,9.74392515,202.49,202.41,8.07]
[1757228544436,9.74392515,202.49,202.36,126.36052515]
[1757228544437,9.74392515,202.49,202.43,8.07]
[1757228548138,7.33,202.49,202.43,8.07]
[1757228560252,7.33,202.49,202.44,4.42458948]
[1757228560452,7.32,202.49,202.4,8.07]
[1757228560648,7.32,202.49,202.42,8.07]
[1757228560857,7.32,202.49,202.44,8.07]
[1757228561157,7.32,202.49,202.4,8.07]
[1757228561358,7.32,202.49,202.42,8.07]
[1757228561556,7.32,202.49,202.44,8.07]
[1757228561757,5.50469882,202.5,202.39,2.41392515]
[1757228562050,5.50469882,202.5,202.42,2.41392515]
[1757228562255,7.91862397,202.52,202.44,8.07]
[1757228562456,7.32,202.51,202.46,8.07]
[1757228562656,7.32,202.51,202.43,8.07]
[1757228562857,7.32,202.51,202.45,8.07]
[1757228563052,7.91862397,202.52,202.46,9.16468827]
[1757228563260,15.23862397,202.52,202.47,4.42756049]
[1757228563456,15.23862397,202.52,202.43,8.07]
[1757228563653,15.23862397,202.52,202.45,8.07]
[1757228563854,7.91862397,202.52,202.46,9.16733532]
[1757228564054,5.50469882,202.52,202.48,8.07]
[1757228564351,5.50469882,202.54,202.5,8.07]
[1757228564755,7.32,202.53,202.5,8.07]
[1757228565558,7.32,202.53,202.46,8.07]
[1757228565754,7.32,202.53,202.48,8.07]
[1757228565958,7.32,202.53,202.5,8.07]
[1757228566366,5.50469882,202.55,202.5,8.07]
[1757228566566,7.32,202.53,202.5,8.07]
[1757228568266,7.32,202.53,202.46,8.07]
[1757228568474,7.32,202.53,202.47,9.17559119]
[1757228568676,7.32,202.53,202.49,8.07]
[1757228568973,7.32,202.53,202.51,8.07]
[1757228570269,5.50469882,202.54,202.51,8.07]
[1757228570470,7.32,202.52,202.51,8.07]
[1757228570674,7.32,202.52,202.51,17.25033184]
[1757228575277,12.82469882,202.54,202.51,12.50387304]
[1757228575577,5.50469882,202.54,202.49,7.87]
[1757228575778,14.3704137,202.55,202.51,7.87]
[1757228576076,14.3704137,202.55,202.49,7.87]
[1757228576276,14.3704137,202.55,202.5,9.1773252]
[1757228576477,14.3704137,202.55,202.51,9.1773252]
[1757228576678,14.3704137,202.55,202.49,7.87]
[1757228576877,5.50469882,202.55,202.51,7.87]
[1757228577076,7.32,202.56,202.52,9.17669586]
[1757228577276,7.32,202.56,202.54,7.87]
[1757228581083,8.86571488,202.56,202.49,7.87]
[1757228581385,1.54571488,202.54,202.5,9.17207108]
[1757228581686,7.32,202.53,202.46,9.41571488]
[1757228581884,7.32,202.53,202.47,9.17232016]
[1757228582188,7.32,202.53,202.48,17.04234498]
[1757228582382,1.54571488,202.54,202.49,17.04234498]
[1757228582588,7.32,202.53,202.5,4.43217245]
[1757228582889,7.32,202.53,202.49,7.87]
[1757228583085,7.32,202.53,202.5,4.43200731]
[1757228583384,1.54571488,202.54,202.49,7.87]
[1757228583589,1.54571488,202.54,202.5,4.43186553]
[1757228583789,1.54571488,202.54,202.49,7.87]
[1757228584086,7.32,202.53,202.5,4.43186553]
[1757228584284,7.32,202.53,202.48,1.54571488]
[1757228584484,7.32,202.53,202.5,7.87]
[1757228584785,7.32,202.53,202.48,1.54571488]
[1757228584989,7.32,202.53,202.5,7.87]
[1757228585289,1.54571488,202.54,202.49,7.87]
[1757228585488,8.86571488,202.54,202.5,9.17110842]
[1757228585690,8.86571488,202.54,202.51,7.87]
[1757228585886,5.50469882,202.55,202.49,7.87]
[1757228586189,14.3704137,202.56,202.5,10.7168004]
[1757228586390,14.3704137,202.56,202.51,4.43156405]
[1757228586590,14.3704137,202.56,202.5,1.54571488]
[1757228586789,7.32,202.55,202.52,7.87]
[1757228590898,1.54571488,202.54,202.43,7.87]
[1757228591093,8.86571488,202.51,202.45,7.87]
[1757228591298,7.32,202.5,202.47,7.87]
[1757228591597,5.50469882,202.54,202.48,17.03888387]
[1757228591794,7.32,202.51,202.46,7.87]
[1757228591997,8.86571488,202.53,202.48,7.87]
[1757228592298,7.32,202.52,202.5,7.87]
[1757228593196,7.32,202.52,202.45,1.54571488]
[1757228593197,7.32,202.52,202.46,7.87]
[1757228593492,7.32,202.52,202.48,7.87]
[1757228593693,7.32,202.52,202.49,9.17214961]
[1757228593898,7.32,202.52,202.46,7.87]
[1757228594193,7.32,202.52,202.47,9.17214961]
[1757228594398,7.32,202.52,202.49,7.87]
[1757228594700,7.32,202.52,202.5,4.43209293]
[1757228594900,7.32,202.52,202.49,7.87]
[1757228595192,7.32,202.52,202.5,4.43252668]
[1757228595398,7.32,202.52,202.49,7.87]
[1757228595595,7.32,202.52,202.5,4.4330024]
[1757228595797,7.32,202.52,202.49,7.87]
[1757228595993,7.32,202.52,202.5,4.4330024]
[1757228596297,7.32,202.52,202.49,7.87]
[1757228596600,1.54571488,202.53,202.5,4.43352451]
[1757228596798,7.32,202.52,202.49,7.87]
[1757228597001,7.32,202.51,202.5,4.43352451]
[1757228597203,8.86571488,202.51,202.44,1.54571488]
[1757228597404,8.86571488,202.51,202.45,17.04702695]
[1757228597602,1.54571488,202.51,202.47,7.87]
[1757228597905,1.54571488,202.51,202.48,9.17702695]
[1757228598100,1.54571488,202.51,202.47,7.87]
[1757228598101,7.32,202.5,202.47,7.87]
[1757228598406,7.32,202.5,202.48,9.17180008]
[1757228598602,7.32,202.5,202.47,7.87]
[1757228598801,7.32,202.5,202.48,9.17180008]
[1757228599107,7.32,202.5,202.47,7.87]
[1757228599306,1.54571488,202.51,202.49,7.64]
[1757228599505,8.85571488,202.51,202.49,7.64]
[1757228600305,1.54571488,202.51,202.45,7.64]
[1757228600508,7.31,202.5,202.47,7.64]
[1757228600696,7.31,202.5,202.48,9.13655094]
[1757228601007,7.31,202.5,202.47,7.64]
[1757228601301,7.31,202.5,202.48,9.13655094]
[1757228601501,7.31,202.5,202.47,7.64]
[1757228601705,8.85571488,202.49,202.48,4.43695356]
[1757228601902,8.85571488,202.49,202.41,7.64]
[1757228602109,7.31,202.44,202.42,9.13821398]
[1757228602303,7.31,202.44,202.43,9.13821398]
[1757228604407,8.85571488,202.44,202.38,7.64]
[1757228604609,1.54571488,202.44,202.39,16.77924303]
[1757228604901,1.54571488,202.44,202.4,9.13924303]
[1757228605106,7.31,202.43,202.41,4.43756282]
[1757228605304,7.31,202.43,202.39,7.64]
[1757228605499,7.31,202.43,202.4,9.13621201]
[1757228605704,5.50469882,202.45,202.41,4.43609113]
[1757228606005,7.31,202.42,202.39,7.64]
[1757228606307,7.31,202.42,202.4,4.4361872]
[1757228606506,7.31,202.42,202.39,7.64]
[1757228606809,7.31,202.42,202.4,4.43468424]
[1757228607008,7.31,202.42,202.39,7.64]
[1757228607307,7.31,202.43,202.39,7.64]
[1757228607507,7.31,202.43,202.4,4.4327483]
[1757228607508,7.31,202.42,202.4,4.4327483]
[1757228607708,7.31,202.42,202.39,7.64]
[1757228607908,7.31,202.42,202.4,4.43272539]
[1757228608109,7.31,202.42,202.39,7.64]
[1757228609617,7.31,202.42,202.37,7.64]
[1757228609810,7.31,202.42,202.38,9.13311946]
[1757228610006,7.31,202.42,202.4,7.64]
[1757228619819,1.54571488,202.43,202.37,7.64]
[1757228622516,120.87334096,202.46,202.38,1.54571488]
[1757228622723,122.41905584,202.46,202.4,7.64]
[1757228624220,122.41905584,202.46,202.4,9.18571488]
[1757228625524,129.74905584,202.46,202.4,9.18571488]
[1757228627327,129.74905584,202.46,202.4,7.64]
[1757228631231,128.20334096,202.46,202.4,7.64]
[1757228632534,128.20334096,202.46,202.41,4.43551784]
[1757228632734,128.20334096,202.46,202.4,7.64]
[1757228632932,120.87334096,202.46,202.42,8.2]
[1757228633132,7.32,202.45,202.42,8.2]
[1757228633332,120.87334096,202.46,202.42,8.2]
[1757228633535,7.32,202.45,202.42,8.2]
[1757228633930,120.87334096,202.46,202.42,8.2]
[1757228634130,7.32,202.45,202.42,8.2]
[1757228634628,120.87334096,202.46,202.42,8.2]
[1757228634827,7.32,202.45,202.42,8.2]
[1757228635035,120.87334096,202.46,202.3,4.448]
[1757228635235,7.32,202.45,202.36,8.2]
[1757228635534,7.32,202.45,202.37,9.14126691]
[1757228635833,7.32,202.45,202.38,9.14126691]